[Event "FIDE Womens Grand Swiss 2023"]
[Site "Douglas/Isle of Man"]
[Date "2023.10.25"]
[Round "1.7"]
[White "Tania, Sachdev"]
[Black "Dronavalli, Harika"]
[Result "1/2-1/2"]
[ECO "D31"]
[WhiteElo "2389"]
[BlackElo "2502"]
[Annotator "RC"]
[PlyCount "92"]
[EventDate "2023.10.04"]
[EventType "swiss"]
[EventCountry "GBR"]
[SourceTitle "playchess.com"]
[Source "ChessBase"]
[SourceQuality "1"]
[TimeControl "40/6000+30:20/3000+30:900+30"]

1. d4 {[%emt 0:10:37]} d5 {[%emt 0:10:34]} 2. Nf3 {[%emt 0:00:27]} c6 {[%emt 0:01:23]} 3. c4 {[%emt 0:00:24]} e6 {[%emt 0:00:39]} 4. Nc3 {[%emt 0:01:15]} dxc4 {[%emt 0:00:25]} 5. g3 {[%emt 0:06:51]} b5 {[%emt 0:01:20]} 6. Bg2 {[%emt 0:00:04]} Bb7 {[%emt 0:00:31]} 7. a4 {[%emt 0:00:32]} a6 {[%emt 0:03:57]} 8. O-O {[%emt 0:03:26]} Nf6 {[%emt 0:02:00]} 9. Ne5 {[%emt 0:12:50]} Qc8 {[%emt 0:02:01]} 10. Bg5 {[%emt 0:02:52]} h6 {[%emt 0:01:02]} 11. Bxf6 {[%emt 0:02:04]} gxf6 {[%emt 0:00:07]} 12. Ng4 {[%emt 0:04:28]} Nd7 {[%emt 0:04:38]} 13. e4 {[%emt 0:03:05]} h5 {[%emt 0:01:37]} 14. Ne3 {[%emt 0:00:10]} h4 {[%emt 0:00:50]} 15. Qc2 {[%emt 0:07:55]} Qc7 {[%emt 0:05:58]} 16. Rfc1 {[%emt 0:18:08]} Rd8 {[%emt 0:10:58]} 17. Qe2 {[%emt 0:04:05]} Bh6 {[%emt 0:05:14]} 18. Rd1 {[%emt 0:09:00]} hxg3 {[%emt 0:04:29]} 19. hxg3 {[%emt 0:02:02]} Kf8 {[%emt 0:01:35]} 20. Ng4 {[%emt 0:07:36]} Bg7 {[%emt 0:00:57]} 21. Qc2 {[%emt 0:00:57]} Kg8 {[%emt 0:08:29]} 22. Ne3 {[%emt 0:06:36]} Bf8 {[%emt 0:09:44]} 23. Qe2 {[%emt 0:01:49]} Bg7 {[%emt 0:03:26]} 24. Rac1 {[%emt 0:02:52]} Qb6 {[%emt 0:03:08]} 25. Ra1 {[%emt 0:01:50]} Nf8 {[%emt 0:02:14]} 26. d5 {[%emt 0:00:12]} cxd5 {[%emt 0:03:53]} 27. exd5 {[%emt 0:00:05]} f5 {[%emt 0:00:03]} 28. axb5 {[%emt 0:01:37]} axb5 {[%emt 0:00:05]} 29. Bf3 {[%emt 0:00:32]} Rh6 {[%emt 0:02:30]} 30. Bg2 {[%emt 0:00:24]} Rg6 {[%emt 0:03:30]} 31. Rd2 {[%emt 0:00:10]} f4 {[%emt 0:02:14]} 32. gxf4 {[%emt 0:00:06]} Bxc3 {[%emt 0:05:46]} 33. bxc3 {[%emt 0:00:01]} Bxd5 {[%emt 0:00:46]} 34. f5 {[%emt 0:00:49]} Rg7 {[%emt 0:00:28]} 35. Nxd5 {[%emt 0:00:42]} exd5 {[%emt 0:00:08]} 36. Rad1 {[%emt 0:01:06]} Qf6 {[%emt 0:03:36]} 37. Rxd5 {[%emt 0:00:46]} Rxd5 {[%emt 0:00:08]} 38. Rxd5 {[%emt 0:00:02]} Qxc3 {[%emt 0:01:56]} 39. Rxb5 {[%emt 0:00:04]} Qc1+ {[%emt 0:01:40]} 40. Qf1 {[%emt 0:00:12]} Qf4 {[%emt 0:02:27]} 41. Rc5 {[%emt 0:30:48]} Rg4 {[%emt 0:22:07]} 42. Rc8 {[%emt 0:03:31]} Qe4 {[%emt 0:07:28]} 43. f3 {[%emt 0:03:24]} Qe3+ {[%emt 0:00:32]} 44. Qf2 {[%emt 0:00:13]} Qc1+ {[%emt 0:00:33]} 45. Qf1 {[%emt 0:00:37]} Qe3+ {[%emt 0:04:24]} 46. Qf2 {[%emt 0:00:03]} Qc1+ {[%emt 0:00:05]} 1/2-1/2

[Event "FIDE Womens Grand Swiss 2023"]
[Site "Douglas/Isle of Man"]
[Date "2023.10.25"]
[Round "1.8"]
[White "Paehtz, Elisabeth"]
[Black "Lee, Alice"]
[Result "1-0"]
[ECO "A20"]
[WhiteElo "2484"]
[BlackElo "2388"]
[Annotator "RC"]
[PlyCount "45"]
[EventDate "2023.10.04"]
[EventType "swiss"]
[EventCountry "GBR"]
[SourceTitle "playchess.com"]
[Source "ChessBase"]
[SourceQuality "1"]
[TimeControl "40/6000+30:20/3000+30:900+30"]

1. c4 {[%emt 0:10:03]} e5 {[%emt 0:10:06]} 2. g3 {[%emt 0:00:07]} c6 {[%emt 0:01:24]} 3. d4 {[%emt 0:02:18]} e4 {[%emt 0:04:48]} 4. Nc3 {[%emt 0:08:47]} d5 {[%emt 0:06:31]} 5. Nh3 {[%emt 0:11:05]} Bb4 {[%emt 0:18:03]} 6. Qb3 {[%emt 0:06:20]} Ba5 {[%emt 0:11:17]} 7. Bg5 {[%emt 0:07:27]} f6 {[%emt 0:02:39]} 8. Bd2 {[%emt 0:05:25]} dxc4 {[%emt 0:01:49]} 9. Qxc4 {[%emt 0:01:58]} b5 {[%emt 0:00:21]} 10. Qb3 {[%emt 0:12:08]} Qxd4 {[%emt 0:02:18]} 11. O-O-O {[%emt 0:00:06]} Qe5 {[%emt 0:06:25]} 12. Nxe4 {[%emt 0:12:24]} Qxe4 {[%emt 0:12:07]} 13. Bxa5 {[%emt 0:00:05]} Be6 {[%emt 0:00:07]} 14. Bg2 {[%emt 0:04:15]} Qe5 {[%emt 0:11:43]} 15. Rd8+ {[%emt 0:00:34]} Kf7 {[%emt 0:00:06]} 16. Qa3 {[%emt 0:04:04]} b4 {[%emt 0:12:52]} 17. Bxb4 {[%emt 0:00:47]} g5 {[%emt 0:04:24]} 18. Bc3 {[%emt 0:02:16]} Qb5 {[%emt 0:00:31]} 19. Qf8+ {[%emt 0:01:57]} Kg6 {[%emt 0:00:02]} 20. Qe8+ {[%emt 0:01:57]} Bf7 {[%emt 0:00:01]} 21. Be4+ {[%emt 0:00:06]} f5 {[%emt 0:01:43]} 22. Rd6+ {[%emt 0:00:04]} Kh5 {[%emt 0:00:36]} 23. Bf3+ {[%emt 0:00:05]} 1-0

[Event "FIDE Womens Grand Swiss 2023"]
[Site "Douglas/Isle of Man"]
[Date "2023.10.25"]
[Round "1.9"]
[White "Tsolakidou, Stavroula"]
[Black "Batsiashvili, Nino"]
[Result "1-0"]
[ECO "A13"]
[WhiteElo "2385"]
[BlackElo "2475"]
[Annotator "RC"]
[PlyCount "75"]
[EventDate "2023.10.04"]
[EventType "swiss"]
[EventCountry "GBR"]
[SourceTitle "playchess.com"]
[Source "ChessBase"]
[SourceQuality "1"]
[TimeControl "40/6000+30:20/3000+30:900+30"]

1. c4 {[%emt 0:10:04]} e6 {[%emt 0:10:07]} 2. g3 {[%emt 0:00:08]} d5 {[%emt 0:00:04]} 3. Bg2 {[%emt 0:00:08]} d4 {[%emt 0:00:07]} 4. Nf3 {[%emt 0:00:11]} Nc6 {[%emt 0:00:04]} 5. O-O {[%emt 0:02:14]} Nh6 {[%emt 0:00:15]} 6. d3 {[%emt 0:04:46]} Nf5 {[%emt 0:00:20]} 7. e4 {[%emt 0:18:17]} dxe3 {[%emt 0:00:07]} 8. fxe3 {[%emt 0:00:05]} h5 {[%emt 0:00:12]} 9. d4 {[%emt 0:04:35]} h4 {[%emt 0:07:18]} 10. g4 {[%emt 0:12:33]} h3 {[%emt 0:00:24]} 11. Bh1 {[%emt 0:08:37]} Nh6 {[%emt 0:14:12]} 12. g5 {[%emt 0:09:35]} Nf5 {[%emt 0:10:41]} 13. Nc3 {[%emt 0:01:11]} Be7 {[%emt 0:01:15]} 14. d5 {[%emt 0:06:40]} Nb4 {[%emt 0:05:54]} 15. Nd4 {[%emt 0:11:15]} Rh4 {[%emt 0:26:11]} 16. a3 {[%emt 0:02:53]} Bc5 {[%emt 0:06:36]} 17. axb4 {[%emt 0:06:06]} Rxd4 {[%emt 0:01:17]} 18. exd4 {[%emt 0:01:32]} Bxd4+ {[%emt 0:00:36]} 19. Rf2 {[%emt 0:00:04]} Qd6 {[%emt 0:02:16]} 20. Ne4 {[%emt 0:01:10]} Qe5 {[%emt 0:01:36]} 21. Qf3 {[%emt 0:01:12]} exd5 {[%emt 0:00:35]} 22. cxd5 {[%emt 0:00:07]} Qe7 {[%emt 0:05:40]} 23. Bd2 {[%emt 0:01:13]} Nh4 {[%emt 0:03:57]} 24. Qd3 {[%emt 0:00:25]} Bxf2+ {[%emt 0:00:28]} 25. Nxf2 {[%emt 0:00:05]} Bf5 {[%emt 0:00:13]} 26. Qe3 {[%emt 0:00:11]} Qxe3 {[%emt 0:00:49]} 27. Bxe3 {[%emt 0:00:03]} Kd7 {[%emt 0:01:23]} 28. Bd4 {[%emt 0:01:29]} g6 {[%emt 0:05:17]} 29. Re1 {[%emt 0:00:32]} a5 {[%emt 0:01:16]} 30. bxa5 {[%emt 0:01:37]} Rxa5 {[%emt 0:00:03]} 31. Ne4 {[%emt 0:00:28]} Bxe4 {[%emt 0:02:20]} 32. Bxe4 {[%emt 0:00:05]} Ra4 {[%emt 0:01:20]} 33. Bf6 {[%emt 0:01:38]} Kd6 {[%emt 0:00:02]} 34. Kf2 {[%emt 0:00:20]} Nf5 {[%emt 0:00:01]} 35. Bxf5 {[%emt 0:01:10]} gxf5 {[%emt 0:00:02]} 36. Kg3 {[%emt 0:00:55]} Kxd5 {[%emt 0:00:30]} 37. Re5+ {[%emt 0:00:47]} Kd6 {[%emt 0:00:05]} 38. Rxf5 {[%emt 0:00:05]} 1-0

[Event "FIDE Womens Grand Swiss 2023"]
[Site "Douglas/Isle of Man"]
[Date "2023.10.25"]
[Round "1.10"]
[White "Assaubayeva, Bibisara"]
[Black "Beydullayeva, Govhar"]
[Result "1/2-1/2"]
[ECO "A13"]
[WhiteElo "2469"]
[BlackElo "2383"]
[Annotator "RC"]
[PlyCount "83"]
[EventDate "2023.10.04"]
[EventType "swiss"]
[EventCountry "GBR"]
[SourceTitle "playchess.com"]
[Source "ChessBase"]
[SourceQuality "1"]
[TimeControl "40/6000+30:20/3000+30:900+30"]

1. c4 {[%emt 0:10:10]} Nf6 {[%emt 0:10:11]} 2. Nf3 {[%emt 0:02:06]} e6 {[%emt 0:00:36]} 3. g3 {[%emt 0:00:10]} d5 {[%emt 0:00:18]} 4. Bg2 {[%emt 0:00:05]} dxc4 {[%emt 0:01:34]} 5. Qa4+ {[%emt 0:00:07]} Bd7 {[%emt 0:00:25]} 6. Qxc4 {[%emt 0:00:08]} c5 {[%emt 0:00:14]} 7. Ne5 {[%emt 0:00:19]} Qc8 {[%emt 0:00:18]} 8. Qd3 {[%emt 0:01:03]} Nc6 {[%emt 0:00:54]} 9. Nxd7 {[%emt 0:00:39]} Nxd7 {[%emt 0:00:05]} 10. Nc3 {[%emt 0:02:34]} Be7 {[%emt 0:04:00]} 11. b3 {[%emt 0:02:12]} O-O {[%emt 0:03:24]} 12. Bb2 {[%emt 0:00:04]} Rd8 {[%emt 0:03:06]} 13. Rd1 {[%emt 0:01:41]} Nb6 {[%emt 0:08:09]} 14. Qb1 {[%emt 0:05:14]} Nd5 {[%emt 0:06:15]} 15. Ne4 {[%emt 0:09:41]} Qd7 {[%emt 0:16:24]} 16. O-O {[%emt 0:06:44]} Rac8 {[%emt 0:01:50]} 17. Qa1 {[%emt 0:05:42]} f5 {[%emt 0:08:06]} 18. d3 {[%emt 0:08:40]} Nd4 {[%emt 0:19:27]} 19. e3 {[%emt 0:06:25]} Nc2 {[%emt 0:04:45]} 20. Qb1 {[%emt 0:07:56]} Ncb4 {[%emt 0:00:30]} 21. a3 {[%emt 0:01:42]} Nc6 {[%emt 0:01:23]} 22. Qa1 {[%emt 0:01:46]} Qe8 {[%emt 0:02:29]} 23. Nd2 {[%emt 0:03:00]} Qf7 {[%emt 0:00:44]} 24. Nf3 {[%emt 0:06:13]} Bf6 {[%emt 0:02:26]} 25. d4 {[%emt 0:02:43]} Na5 {[%emt 0:02:31]} 26. Rd3 {[%emt 0:05:17]} c4 {[%emt 0:00:33]} 27. bxc4 {[%emt 0:00:02]} Nxc4 {[%emt 0:01:21]} 28. Nd2 {[%emt 0:02:07]} b5 {[%emt 0:03:01]} 29. e4 {[%emt 0:02:31]} Nxd2 {[%emt 0:05:03]} 30. Rxd2 {[%emt 0:00:15]} Nb6 {[%emt 0:00:20]} 31. Re2 {[%emt 0:02:47]} Na4 {[%emt 0:02:41]} 32. e5 {[%emt 0:02:39]} Be7 {[%emt 0:00:45]} 33. d5 {[%emt 0:00:09]} exd5 {[%emt 0:01:14]} 34. e6 {[%emt 0:00:09]} Qg6 {[%emt 0:00:30]} 35. Rd1 {[%emt 0:01:36]} Nxb2 {[%emt 0:01:23]} 36. Qxb2 {[%emt 0:00:03]} Rc5 {[%emt 0:00:20]} 37. Re5 {[%emt 0:05:39]} Qf6 {[%emt 0:00:43]} 38. Qe2 {[%emt 0:00:38]} d4 {[%emt 0:00:56]} 39. Rxc5 Bxc5 40. Qxb5 {[%emt 0:00:18]} Be7 {[%emt 0:01:02]} 41. Qa6 {[%emt 0:57:08]} f4 {[%emt 0:27:52]} 42. Qxa7 {[%emt 0:00:00]} 1/2-1/2

[Event "FIDE Womens Grand Swiss 2023"]
[Site "Douglas/Isle of Man"]
[Date "2023.10.25"]
[Round "1.11"]
[White "Socko, Monika"]
[Black "Wagner, Dinara"]
[Result "1/2-1/2"]
[ECO "D02"]
[WhiteElo "2380"]
[BlackElo "2461"]
[Annotator "RC"]
[PlyCount "56"]
[EventDate "2023.10.04"]
[EventType "swiss"]
[EventCountry "GBR"]
[SourceTitle "playchess.com"]
[Source "ChessBase"]
[SourceQuality "1"]
[TimeControl "40/6000+30:20/3000+30:900+30"]

1. d4 {[%emt 0:10:03]} Nf6 {[%emt 0:10:04]} 2. Nf3 {[%emt 0:00:24]} d5 {[%emt 0:00:06]} 3. Bf4 {[%emt 0:00:10]} Bf5 {[%emt 0:00:39]} 4. e3 {[%emt 0:01:53]} e6 {[%emt 0:00:26]} 5. Bd3 {[%emt 0:00:46]} Bxd3 {[%emt 0:15:22]} 6. Qxd3 {[%emt 0:00:07]} Nbd7 {[%emt 0:00:25]} 7. Nbd2 {[%emt 0:02:21]} Bd6 {[%emt 0:02:16]} 8. Bxd6 {[%emt 0:06:38]} cxd6 {[%emt 0:00:12]} 9. O-O {[%emt 0:00:07]} O-O {[%emt 0:01:58]} 10. Rfc1 {[%emt 0:05:36]} Qe7 {[%emt 0:11:44]} 11. c4 {[%emt 0:03:14]} dxc4 {[%emt 0:06:50]} 12. Rxc4 {[%emt 0:02:35]} Nb6 {[%emt 0:02:01]} 13. Rc2 {[%emt 0:01:38]} Rfc8 {[%emt 0:08:34]} 14. Rac1 {[%emt 0:01:50]} d5 {[%emt 0:04:44]} 15. Qb3 {[%emt 0:08:50]} Rxc2 {[%emt 0:01:45]} 16. Rxc2 {[%emt 0:00:05]} Rc8 {[%emt 0:00:10]} 17. Rxc8+ {[%emt 0:03:25]} Nxc8 {[%emt 0:00:03]} 18. Qc3 {[%emt 0:00:13]} Nd6 {[%emt 0:02:34]} 19. h3 {[%emt 0:02:14]} Nfe8 {[%emt 0:02:06]} 20. Ne5 {[%emt 0:03:30]} Qc7 {[%emt 0:02:16]} 21. Qxc7 {[%emt 0:01:13]} Nxc7 {[%emt 0:00:03]} 22. Kf1 {[%emt 0:00:18]} f6 {[%emt 0:02:26]} 23. Nd3 {[%emt 0:01:59]} g5 {[%emt 0:01:34]} 24. Ke2 {[%emt 0:03:49]} Kf7 {[%emt 0:00:17]} 25. Nb3 {[%emt 0:00:36]} Nc4 {[%emt 0:03:38]} 26. Nd2 {[%emt 0:00:37]} Nd6 {[%emt 0:00:04]} 27. Nb3 {[%emt 0:00:03]} Nc4 {[%emt 0:03:12]} 28. Nd2 {[%emt 0:00:06]} Nd6 {[%emt 0:00:03]} 1/2-1/2

[Event "FIDE Womens Grand Swiss 2023"]
[Site "Douglas/Isle of Man"]
[Date "2023.10.25"]
[Round "1.12"]
[White "Vaishali, Rameshbabu"]
[Black "Kiolbasa, Oliwia"]
[Result "1-0"]
[ECO "C54"]
[WhiteElo "2448"]
[BlackElo "2375"]
[Annotator "RC"]
[PlyCount "159"]
[EventDate "2023.10.04"]
[EventType "swiss"]
[EventCountry "GBR"]
[SourceTitle "playchess.com"]
[Source "ChessBase"]
[SourceQuality "1"]
[TimeControl "40/6000+30:20/3000+30:900+30"]

1. e4 {[%emt 0:10:34]} e5 {[%emt 0:10:10]} 2. Nf3 {[%emt 0:00:05]} Nc6 {[%emt 0:00:10]} 3. Bc4 {[%emt 0:00:07]} Nf6 {[%emt 0:00:15]} 4. d3 {[%emt 0:00:05]} Bc5 {[%emt 0:00:19]} 5. O-O {[%emt 0:00:11]} d6 {[%emt 0:00:57]} 6. c3 {[%emt 0:00:44]} O-O {[%emt 0:06:02]} 7. Bg5 {[%emt 0:03:00]} h6 {[%emt 0:00:47]} 8. Bh4 {[%emt 0:00:05]} a6 {[%emt 0:06:21]} 9. b4 {[%emt 0:03:24]} Ba7 {[%emt 0:04:05]} 10. Nbd2 {[%emt 0:01:25]} Be6 {[%emt 0:09:31]} 11. a4 {[%emt 0:09:33]} Qe7 {[%emt 0:06:09]} 12. Re1 {[%emt 0:12:18]} Rfe8 {[%emt 0:10:02]} 13. h3 {[%emt 0:25:41]} g5 {[%emt 0:10:31]} 14. Bg3 {[%emt 0:01:41]} Nh5 {[%emt 0:08:52]} 15. Kh2 {[%emt 0:24:42]} Qf6 {[%emt 0:08:20]} 16. b5 {[%emt 0:03:25]} Na5 {[%emt 0:08:03]} 17. Bxe6 {[%emt 0:01:46]} Rxe6 {[%emt 0:00:19]} 18. Nf1 {[%emt 0:02:34]} Rae8 {[%emt 0:06:36]} 19. Ra2 {[%emt 0:02:19]} Bb6 {[%emt 0:02:02]} 20. Ne3 {[%emt 0:03:18]} Bxe3 {[%emt 0:00:58]} 21. fxe3 {[%emt 0:00:02]} Nxg3 {[%emt 0:01:04]} 22. Kxg3 {[%emt 0:00:02]} axb5 {[%emt 0:06:41]} 23. axb5 {[%emt 0:00:05]} b6 {[%emt 0:00:02]} 24. h4 {[%emt 0:03:39]} gxh4+ {[%emt 0:02:16]} 25. Nxh4 {[%emt 0:00:06]} Kh7 {[%emt 0:00:45]} 26. Rf1 {[%emt 0:01:39]} Rg8+ {[%emt 0:01:18]} 27. Kh3 {[%emt 0:00:06]} Qg7 {[%emt 0:00:12]} 28. Nf5 {[%emt 0:00:56]} Qg5 {[%emt 0:00:19]} 29. Kh2 {[%emt 0:00:49]} Rf6 {[%emt 0:00:30]} 30. Raf2 {[%emt 0:00:32]} Nb7 {[%emt 0:00:35]} 31. Qf3 {[%emt 0:00:32]} Nc5 {[%emt 0:00:53]} 32. d4 {[%emt 0:00:15]} Ne6 {[%emt 0:00:15]} 33. Qh3 {[%emt 0:00:24]} Ng7 {[%emt 0:01:07]} 34. Nh4 {[%emt 0:00:51]} Nh5 {[%emt 0:00:30]} 35. Rf5 {[%emt 0:00:30]} Rxf5 {[%emt 0:00:31]} 36. Rxf5 {[%emt 0:00:03]} Qg3+ {[%emt 0:00:25]} 37. Qxg3 {[%emt 0:00:03]} Nxg3 {[%emt 0:00:05]} 38. Rxf7+ {[%emt 0:00:05]} Kh8 {[%emt 0:00:02]} 39. Rxc7 {[%emt 0:01:41]} Nf1+ {[%emt 0:00:38]} 40. Kg1 {[%emt 0:00:03]} Nxe3 {[%emt 0:00:05]} 41. dxe5 {[%emt 0:32:33]} dxe5 {[%emt 0:20:27]} 42. Kf2 {[%emt 0:01:06]} Ng4+ {[%emt 0:04:02]} 43. Kg3 {[%emt 0:02:33]} Nf6+ {[%emt 0:12:27]} 44. Kf3 {[%emt 0:00:05]} Rg4 {[%emt 0:00:15]} 45. g3 {[%emt 0:01:02]} h5 {[%emt 0:00:05]} 46. Rc4 {[%emt 0:02:35]} Nd7 {[%emt 0:08:51]} 47. Rc6 {[%emt 0:05:39]} Rg7 {[%emt 0:02:13]} 48. Nf5 {[%emt 0:02:24]} Rf7 {[%emt 0:00:43]} 49. Ke3 {[%emt 0:03:22]} Rf6 {[%emt 0:00:28]} 50. Rc8+ {[%emt 0:02:18]} Rf8 {[%emt 0:01:59]} 51. Rc6 {[%emt 0:00:19]} Rf6 {[%emt 0:00:05]} 52. Ne7 {[%emt 0:00:24]} Rf7 {[%emt 0:01:45]} 53. Nd5 {[%emt 0:00:29]} Rg7 {[%emt 0:00:08]} 54. Kf3 {[%emt 0:00:36]} Rf7+ {[%emt 0:00:05]} 55. Ke3 {[%emt 0:00:28]} Rg7 {[%emt 0:00:13]} 56. Kf3 {[%emt 0:00:02]} Rf7+ {[%emt 0:00:06]} 57. Kg2 {[%emt 0:00:06]} Nc5 {[%emt 0:00:15]} 58. Rh6+ {[%emt 0:01:42]} Kg7 {[%emt 0:00:50]} 59. Rxh5 {[%emt 0:00:28]} Nxe4 {[%emt 0:00:07]} 60. Rxe5 {[%emt 0:00:09]} Nd6 {[%emt 0:00:12]} 61. Ne3 {[%emt 0:17:19]} Rc7 {[%emt 0:15:26]} 62. Rd5 {[%emt 0:00:27]} Nf7 {[%emt 0:01:37]} 63. c4 {[%emt 0:00:18]} Kf6 {[%emt 0:00:04]} 64. Rh5 {[%emt 0:00:47]} Ke6 {[%emt 0:00:21]} 65. Kf3 {[%emt 0:00:55]} Ne5+ {[%emt 0:01:10]} 66. Ke4 {[%emt 0:00:22]} Nxc4 {[%emt 0:00:14]} 67. Rh6+ {[%emt 0:00:01]} Kd7 {[%emt 0:00:07]} 68. Rh7+ {[%emt 0:00:03]} Kd8 {[%emt 0:00:05]} 69. Rxc7 {[%emt 0:00:15]} Nd6+ {[%emt 0:00:06]} 70. Ke5 {[%emt 0:00:03]} Kxc7 {[%emt 0:00:08]} 71. Nd5+ {[%emt 0:00:01]} Kd7 {[%emt 0:00:27]} 72. Nxb6+ {[%emt 0:00:03]} Kc7 {[%emt 0:00:15]} 73. Nd5+ {[%emt 0:00:22]} Kd7 {[%emt 0:00:04]} 74. b6 {[%emt 0:01:24]} Nc4+ {[%emt 0:00:31]} 75. Kf6 {[%emt 0:00:24]} Kc6 {[%emt 0:00:24]} 76. Ke6 {[%emt 0:01:53]} Nd2 {[%emt 0:00:35]} 77. g4 {[%emt 0:00:22]} Nf3 {[%emt 0:00:10]} 78. Kf5 {[%emt 0:00:58]} Kxd5 {[%emt 0:04:33]} 79. b7 {[%emt 0:00:09]} Nd4+ {[%emt 0:00:10]} 80. Kf6 {[%emt 0:00:11]} 1-0

[Event "FIDE Womens Grand Swiss 2023"]
[Site "Douglas/Isle of Man"]
[Date "2023.10.25"]
[Round "1.13"]
[White "Savitha Shri B"]
[Black "Efroimski, Marsel"]
[Result "1-0"]
[ECO "B35"]
[WhiteElo "2375"]
[BlackElo "2447"]
[Annotator "RC"]
[PlyCount "59"]
[EventDate "2023.10.04"]
[EventType "swiss"]
[EventCountry "GBR"]
[SourceTitle "playchess.com"]
[Source "ChessBase"]
[SourceQuality "1"]
[TimeControl "40/6000+30:20/3000+30:900+30"]

1. e4 {[%emt 0:10:42]} c5 {[%emt 0:10:04]} 2. Nf3 {[%emt 0:00:08]} Nc6 {[%emt 0:00:04]} 3. d4 {[%emt 0:00:14]} cxd4 {[%emt 0:00:05]} 4. Nxd4 {[%emt 0:00:03]} g6 {[%emt 0:00:04]} 5. Nc3 {[%emt 0:01:39]} Bg7 {[%emt 0:00:05]} 6. Be3 {[%emt 0:00:11]} Nf6 {[%emt 0:00:20]} 7. Bc4 {[%emt 0:01:57]} O-O {[%emt 0:00:14]} 8. f3 {[%emt 0:00:12]} Qb6 {[%emt 0:02:18]} 9. Rb1 {[%emt 0:28:10]} Qc5 {[%emt 0:50:25]} 10. Be2 {[%emt 0:14:57]} Ng4 {[%emt 0:02:37]} 11. fxg4 {[%emt 0:00:09]} Bxd4 {[%emt 0:00:37]} 12. Bxd4 {[%emt 0:00:06]} Nxd4 {[%emt 0:00:38]} 13. Qd3 {[%emt 0:02:44]} a5 {[%emt 0:04:29]} 14. Rd1 {[%emt 0:02:42]} e5 {[%emt 0:02:57]} 15. Rd2 {[%emt 0:08:16]} d6 {[%emt 0:04:03]} 16. Nd5 {[%emt 0:03:38]} Be6 {[%emt 0:01:54]} 17. c3 {[%emt 0:02:43]} Nxe2 {[%emt 0:00:22]} 18. Qxe2 {[%emt 0:00:28]} f5 {[%emt 0:05:44]} 19. gxf5 {[%emt 0:02:42]} gxf5 {[%emt 0:00:05]} 20. Qe3 {[%emt 0:08:45]} Qxe3+ {[%emt 0:01:35]} 21. Nxe3 {[%emt 0:00:01]} fxe4 {[%emt 0:00:32]} 22. Rxd6 {[%emt 0:00:42]} Bxa2 {[%emt 0:00:08]} 23. Ke2 {[%emt 0:00:59]} a4 {[%emt 0:07:25]} 24. Rb6 {[%emt 0:01:32]} Bb3 {[%emt 0:09:46]} 25. Rb4 {[%emt 0:04:13]} Rf4 {[%emt 0:02:33]} 26. g3 {[%emt 0:01:16]} Rf3 {[%emt 0:00:36]} 27. Rxe4 {[%emt 0:04:31]} Raf8 {[%emt 0:00:02]} 28. Ke1 {[%emt 0:02:47]} Rf2 {[%emt 0:00:40]} 29. Rf1 {[%emt 0:00:33]} Rxb2 {[%emt 0:00:11]} 30. Rg4+ {[%emt 0:00:04]} 1-0

[Event "FIDE Womens Grand Swiss 2023"]
[Site "Douglas/Isle of Man"]
[Date "2023.10.25"]
[Round "1.14"]
[White "Cramling, Pia"]
[Black "Cori T., Deysi"]
[Result "1/2-1/2"]
[ECO "A41"]
[WhiteElo "2446"]
[BlackElo "2367"]
[Annotator "RC"]
[PlyCount "116"]
[EventDate "2023.10.04"]
[EventType "swiss"]
[EventCountry "GBR"]
[SourceTitle "playchess.com"]
[Source "ChessBase"]
[SourceQuality "1"]
[TimeControl "40/6000+30:20/3000+30:900+30"]

1. d4 {[%emt 0:10:04]} d6 {[%emt 0:10:12]} 2. c4 {[%emt 0:00:16]} e5 {[%emt 0:02:23]} 3. Nf3 {[%emt 0:00:24]} Nc6 {[%emt 0:03:13]} 4. g3 {[%emt 0:09:29]} e4 {[%emt 0:07:34]} 5. Ng5 {[%emt 0:00:31]} d5 {[%emt 0:00:34]} 6. Nc3 {[%emt 0:06:13]} Bb4 {[%emt 0:02:49]} 7. Nh3 {[%emt 0:17:18]} Nf6 {[%emt 0:15:24]} 8. Nf4 {[%emt 0:18:31]} O-O {[%emt 0:02:54]} 9. e3 {[%emt 0:05:23]} Bg4 {[%emt 0:13:46]} 10. Be2 {[%emt 0:00:59]} Bxe2 {[%emt 0:00:51]} 11. Qxe2 {[%emt 0:00:27]} Na5 {[%emt 0:01:22]} 12. cxd5 {[%emt 0:01:52]} Bxc3+ {[%emt 0:01:51]} 13. bxc3 {[%emt 0:00:05]} Nxd5 {[%emt 0:00:04]} 14. c4 {[%emt 0:01:39]} Nb6 {[%emt 0:05:26]} 15. Ba3 {[%emt 0:01:04]} Re8 {[%emt 0:00:39]} 16. Rc1 {[%emt 0:00:22]} Qd7 {[%emt 0:03:10]} 17. Bb4 {[%emt 0:02:07]} Naxc4 {[%emt 0:11:09]} 18. Rxc4 {[%emt 0:00:42]} Qb5 {[%emt 0:00:02]} 19. Rxc7 {[%emt 0:00:50]} Qxb4+ {[%emt 0:00:02]} 20. Qd2 {[%emt 0:02:46]} Qb1+ {[%emt 0:06:44]} 21. Rc1 {[%emt 0:00:09]} Qb5 {[%emt 0:00:02]} 22. Rc5 {[%emt 0:01:14]} Qb1+ {[%emt 0:00:18]} 23. Rc1 {[%emt 0:00:16]} Qb5 {[%emt 0:00:03]} 24. Qe2 {[%emt 0:03:45]} Qa5+ {[%emt 0:02:08]} 25. Kf1 {[%emt 0:05:14]} Rac8 {[%emt 0:01:43]} 26. Kg2 {[%emt 0:00:07]} Nd5 {[%emt 0:00:30]} 27. Nxd5 {[%emt 0:00:24]} Qxd5 {[%emt 0:00:04]} 28. Rxc8 {[%emt 0:01:08]} Rxc8 {[%emt 0:00:01]} 29. Rb1 {[%emt 0:00:17]} a6 {[%emt 0:01:59]} 30. a4 {[%emt 0:00:36]} h5 {[%emt 0:01:36]} 31. h4 {[%emt 0:00:24]} Rc7 {[%emt 0:03:19]} 32. Qd2 {[%emt 0:03:20]} g6 {[%emt 0:07:01]} 33. a5 {[%emt 0:05:23]} Kg7 {[%emt 0:01:52]} 34. Qb4 {[%emt 0:03:27]} Qf5 {[%emt 0:01:07]} 35. Qd2 {[%emt 0:03:24]} Qd5 {[%emt 0:00:41]} 36. Rb2 {[%emt 0:01:11]} Rc4 {[%emt 0:02:04]} 37. Qd1 {[%emt 0:01:59]} Rc3 {[%emt 0:01:02]} 38. Qb1 {[%emt 0:01:22]} Rd3 {[%emt 0:01:46]} 39. Qc2 {[%emt 0:02:49]} Qf5 {[%emt 0:01:29]} 40. Qe2 {[%emt 0:00:23]} Qd5 {[%emt 0:00:59]} 41. Qc2 {[%emt 0:51:47]} Qf5 {[%emt 0:50:25]} 42. Qe2 {[%emt 0:00:00]} Qxa5 {[%emt 0:00:00]} 43. Rxb7 {[%emt 0:00:00]} Rd2 {[%emt 0:00:00]} 44. Qe1 {[%emt 0:00:00]} Qa2 {[%emt 0:00:00]} 45. d5 {[%emt 0:00:00]} Kg8 {[%emt 0:00:00]} 46. Rb8+ {[%emt 0:00:00]} Kh7 {[%emt 0:00:00]} 47. d6 {[%emt 0:00:00]} Re2 {[%emt 0:00:00]} 48. d7 {[%emt 0:00:00]} Rxe1 {[%emt 0:00:00]} 49. d8=Q {[%emt 0:00:00]} Qa1 {[%emt 0:00:00]} 50. Qg8+ {[%emt 0:00:00]} Kh6 {[%emt 0:00:00]} 51. Qf8+ {[%emt 0:00:12]} Qg7 {[%emt 0:00:00]} 52. Qe7 {[%emt 0:00:30]} Qa1 {[%emt 0:00:12]} 53. Qf8+ {[%emt 0:00:08]} Qg7 {[%emt 0:00:02]} 54. Qe7 {[%emt 0:00:03]} Qa1 {[%emt 0:00:03]} 55. Qxe4 {[%emt 0:01:01]} Rh1 {[%emt 0:01:52]} 56. Qf4+ {[%emt 0:04:18]} Kg7 {[%emt 0:00:25]} 57. Qd4+ {[%emt 0:00:11]} Qxd4 {[%emt 0:00:22]} 58. exd4 {[%emt 0:00:04]} Rd1 {[%emt 0:00:29]} 1/2-1/2